bitfinex/quotes_ETHUSD_20250905
["timestamp","ask_amount","ask_price","bid_price","bid_amount"]
[1757096026692,3.958,4291.9,4291.6,2.79080489]
[1757096026892,3.958,4291.9,4291.6,2.33010489]
[1757096027203,3.958,4291.9,4291.3,0.116]
[1757096027204,0.116,4292.0,4291.8,0.2851]
[1757096027369,0.116,4292.0,4291.9,2.3299704]
[1757096027571,0.116,4292.0,4291.9,3.5357704]
[1757096027902,1.717,4292.1,4292.0,2.32991612]
[1757096028108,1.717,4292.1,4292.0,3.07571612]
[1757096028410,5.672,4292.1,4292.0,3.07571612]
[1757096030397,5.672,4292.1,4291.7,2.3300713]
[1757096030599,5.672,4292.1,4291.9,2.3299704]
[1757096030897,5.672,4292.1,4292.0,2.32991612]
[1757096032682,12.26992166,4292.1,4291.6,0.116]
[1757096032977,0.116,4291.9,4291.8,2.32997322]
[1757096033177,0.116,4291.9,4291.8,2.61507322]
[1757096033405,0.116,4291.9,4291.8,3.07577322]
[1757096033781,0.3309,4291.9,4291.7,2.33005179]
[1757096033999,11.00632166,4291.8,4291.1,0.004]
[1757096034209,6.59792166,4291.5,4291.1,0.004]
[1757096034395,0.116,4291.3,4291.1,2.33439288]
[1757096034597,0.116,4291.3,4291.2,2.33035048]
[1757096034983,0.116,4291.3,4291.2,2.61545048]
[1757096035181,0.116,4291.3,4291.2,2.33035048]
[1757096035782,0.116,4291.3,4291.1,0.4647]
[1757096036095,0.5734,4291.3,4291.1,2.33437763]
[1757096036296,0.5734,4291.3,4291.2,2.33035048]
[1757096036484,0.116,4291.3,4291.2,2.33035048]
[1757096037310,0.116,4291.3,4291.2,3.07615048]
[1757096037529,3.952,4291.3,4291.2,4.00263139]
[1757096037828,3.952,4291.3,4291.2,4.11863139]
[1757096040280,1.718,4292.1,4292.0,2.32991612]
[1757096040477,5.784,4292.1,4292.0,3.07571612]
[1757096041094,5.784,4292.1,4292.0,0.2851]
[1757096041282,5.7861,4292.1,4291.6,2.79083159]
[1757096041486,0.4574,4292.0,4291.6,2.33013159]
[1757096041691,0.4574,4292.0,4291.8,2.33001581]
[1757096041933,0.4574,4292.0,4291.9,2.3299704]
[1757096042228,5.784,4292.1,4291.6,2.33011319]
[1757096042229,5.784,4292.1,4291.8,2.33000769]
[1757096042429,5.784,4292.1,4291.6,2.79078937]
[1757096042729,5.784,4292.1,4291.7,0.4607]
[1757096042894,5.784,4292.1,4291.7,2.79076529]
[1757096043114,8.11386487,4292.1,4291.7,0.4607]
[1757096043283,0.4574,4292.0,4291.5,2.33018708]
[1757096043498,0.4574,4292.0,4291.6,0.21831201]
[1757096043702,0.4574,4292.0,4291.5,2.79088708]
[1757096043703,2.78732348,4292.0,4291.7,0.21831201]
[1757096043924,2.78732348,4292.0,4291.8,0.21831201]
[1757096044234,0.4574,4292.0,4291.9,0.21831201]
[1757096044398,10.72297704,4292.0,4291.9,0.21831201]
[1757096044602,2.33002866,4291.8,4291.3,2.33027052]
[1757096044803,0.116,4291.6,4291.4,0.2183423]
[1757096045121,0.116,4291.6,4291.3,2.33027052]
[1757096045122,0.116,4291.6,4291.5,0.2183423]
[1757096045330,6.27910437,4291.7,4291.5,0.2183423]
[1757096045646,6.27907898,4291.7,4291.6,0.2183423]
[1757096045802,9.98453051,4291.7,4291.6,0.2183423]
[1757096046001,9.98453051,4291.7,4291.1,0.004]
[1757096046002,0.116,4291.6,4291.1,0.004]
[1757096046201,4.89695153,4291.7,4291.2,0.21838678]
[1757096046433,2.3302268,4291.5,4291.3,0.21838678]
[1757096046638,2.3302268,4291.5,4291.4,0.21838678]
[1757096046799,6.2855268,4291.5,4291.4,0.21838678]
[1757096047134,0.4574,4291.9,4291.4,0.96418678]
[1757096047310,0.3309,4291.5,4291.1,0.004]
[1757096047509,3.951,4291.4,4291.2,0.21835213]
[1757096047714,3.951,4291.4,4291.3,0.21835213]
[1757096048104,4.1638,4291.4,4291.3,0.21835213]
[1757096048505,6.95144187,4291.4,4291.3,0.21835213]
[1757096048736,2.33035048,4291.2,4291.1,0.004]
[1757096048947,2.33035048,4291.2,4291.1,0.2223789]
[1757096049142,2.99845048,4291.2,4291.1,0.2223789]
[1757096050505,2.99845048,4291.2,4291.1,0.2223075]
[1757096051142,0.6681,4291.2,4291.1,0.2223075]
[1757096051324,3.951,4291.4,4291.1,0.2223075]
[1757096051524,3.951,4291.4,4291.2,0.2183075]
[1757096051841,2.33239849,4291.3,4291.1,0.004]
[1757096052019,0.0021,4291.3,4291.2,0.21826886]
[1757096052219,3.951,4291.4,4291.2,0.21826886]
[1757096052548,0.116,4291.2,4291.1,0.004]
[1757096052752,4.066,4291.2,4291.1,0.22224706]
[1757096053048,4.0681,4291.2,4291.1,0.22224706]
[1757096053249,7.45897781,4291.2,4291.1,0.004]
[1757096053448,10.45897781,4291.2,4291.1,0.004]
[1757096053654,10.67177781,4291.2,4291.1,0.004]
[1757096054319,7.67177781,4291.2,4291.1,0.004]
[1757096054930,7.45897781,4291.2,4291.1,0.004]
[1757096056250,7.45997781,4291.2,4291.1,0.004]
[1757096056752,7.45897781,4291.2,4291.1,0.004]
[1757096058560,3.50897781,4291.2,4291.1,0.004]
[1757096058747,15.22479873,4291.2,4291.1,0.004]
[1757096061443,11.27579873,4291.2,4291.1,0.004]
[1757096061670,14.73689873,4291.2,4291.1,0.004]
[1757096061958,6.96797781,4291.2,4291.1,0.7475]
[1757096062671,0.001,4291.8,4291.1,1.2339]
[1757096062824,0.001,4291.8,4291.7,2.33007898]
[1757096063025,0.001,4292.1,4292.0,2.32991612]
[1757096063327,0.001,4292.1,4292.0,2.84804388]
[1757096063574,0.001,4292.1,4292.0,3.29124388]
[1757096064377,0.001,4292.1,4292.0,4.40000632]
[1757096064577,0.001,4292.1,4292.0,4.51600632]
[1757096071848,0.001,4292.1,4292.0,4.51530623]
[1757096073390,0.001,4292.1,4292.0,3.40654379]
[1757096074386,0.001,4292.1,4292.0,2.84734379]
[1757096074591,0.001,4292.1,4292.0,3.29054379]
[1757096074824,0.001,4292.1,4292.0,3.77694379]
[1757096075096,0.001,4292.1,4292.0,3.89294379]
[1757096075461,0.001,4292.1,4292.0,4.51523597]
[1757096076203,0.001,4292.1,4292.0,8.71523597]
[1757096078790,0.001,4292.1,4292.0,8.22883597]
[1757096078992,0.001,4292.1,4292.0,7.16334379]
[1757096079366,0.001,4292.1,4292.0,7.61134379]
[1757096082601,0.001,4292.1,4292.0,7.61117742]
[1757096082798,0.001,4292.1,4292.0,8.09087742]
[1757096086509,0.001,4292.1,4292.0,7.61117742]
[1757096086680,0.001,4292.1,4292.0,9.04806296]
[1757096087415,0.001,4292.1,4292.0,11.55917742]
[1757096090722,0.001,4292.1,4292.0,10.81087742]
[1757096090897,0.0032,4292.1,4292.0,6.86287742]
[1757096091098,0.6759,4292.1,4292.0,6.74687742]
[1757096091318,0.46,4292.1,4292.0,6.74687742]
[1757096091623,0.6738,4292.1,4292.0,4.4169613]
[1757096091842,0.97855712,4292.1,4292.0,4.4169613]
[1757096092124,3.30841895,4292.1,4292.0,0.2169613]
[1757096092422,0.97855712,4292.1,4291.6,2.33012125]
[1757096092625,0.116,4291.9,4291.7,2.33007846]
[1757096092932,0.6707,4291.8,4291.7,2.33007846]
[1757096093621,0.116,4291.9,4291.8,2.33002469]
[1757096095025,0.116,4291.9,4291.8,2.61942469]
[1757096095228,0.001,4292.1,4292.0,2.32991612]
[1757096096305,0.4622,4292.1,4292.0,2.32991612]
[1757096096693,0.001,4292.1,4292.0,2.32991612]
[1757096098397,0.001,4292.1,4292.0,3.06731612]
[1757096099850,0.001,4292.1,4292.0,9.66158963]
[1757096099995,0.001,4292.1,4292.0,16.07644636]
[1757096100394,0.001,4292.1,4292.0,15.59674636]
[1757096101239,0.001,4292.1,4292.0,11.39674636]
[1757096101528,0.001,4292.1,4292.0,20.02344636]
[1757096102318,0.001,4292.1,4292.0,25.51544636]
[1757096102914,0.001,4292.1,4292.0,25.60879623]
[1757096104729,0.001,4292.1,4292.0,17.74282272]
[1757096104898,0.001,4292.1,4292.0,8.34591612]
[1757096105241,0.6759,4292.1,4292.0,6.39291612]
[1757096105600,0.6759,4292.1,4292.0,2.44591612]
[1757096106213,0.6759,4292.1,4292.0,2.32991612]
[1757096109440,0.001,4292.1,4292.0,2.62541612]
[1757096109608,0.001,4292.1,4292.0,3.06221612]
[1757096110506,0.001,4292.1,4292.0,2.32991612]
[1757096110706,0.001,4292.1,4292.0,2.62541612]
[1757096110939,0.001,4292.1,4292.0,3.06221612]
[1757096111514,0.001,4293.0,4292.0,7.83406285]
[1757096111715,1e-08,4292.8,4292.7,8.92380969]
[1757096111914,1e-08,4292.8,4292.7,12.87080969]
[1757096112119,1e-08,4292.8,4292.7,15.08830436]
[1757096113931,1e-08,4292.8,4292.7,15.54920436]
[1757096114653,1e-08,4292.8,4292.7,15.08830436]
[1757096115465,1e-08,4292.8,4292.7,15.54920436]
[1757096115671,1e-08,4292.8,4292.7,19.34120436]
[1757096116029,1e-08,4292.8,4292.7,19.43453855]
[1757096116222,1e-08,4292.8,4292.7,23.63453855]
[1757096116618,1e-08,4292.8,4292.7,23.74973165]
[1757096116852,1e-08,4292.8,4292.7,19.54973165]
[1757096117043,1e-08,4292.8,4292.7,23.74973165]
[1757096117242,1e-08,4292.8,4292.7,19.54973165]
[1757096117757,1e-08,4292.8,4292.7,23.74973165]
[1757096117958,1e-08,4292.8,4292.7,19.43453855]
[1757096119548,1e-08,4293.8,4293.7,3.12099364]
[1757096119746,1e-08,4293.8,4293.7,7.379093]
[1757096119948,1e-08,4293.8,4293.7,8.111393]
[1757096120176,1e-08,4293.8,4293.7,14.011393]
[1757096121636,1e-08,4293.8,4293.7,14.127393]
[1757096123356,1e-08,4293.8,4293.7,8.657093]
[1757096123669,1e-08,4293.8,4293.7,12.897593]
[1757096123986,1e-08,4293.8,4293.7,14.126393]
[1757096124541,1e-08,4293.8,4293.7,14.587293]
[1757096126171,1e-08,4293.8,4293.7,21.671293]
[1757096126677,0.001,4294.3,4294.2,22.88825768]
[1757096126842,0.001,4294.3,4294.2,29.10116565]
[1757096127042,0.001,4294.3,4294.2,29.83346565]
[1757096127372,0.001,4294.3,4294.2,35.82676783]
[1757096127554,0.001,4294.3,4294.2,36.28766783]
[1757096127740,0.001,4294.3,4294.2,35.82676783]
[1757096130378,0.001,4294.3,4294.2,13.88543261]
[1757096130547,0.001,4294.3,4294.2,17.44063043]
[1757096131047,0.001,4294.3,4294.2,17.73613043]
[1757096131377,0.001,4294.3,4294.2,18.17293043]
[1757096131944,0.0032,4294.3,4294.2,10.49663043]
[1757096132140,0.4955,4294.3,4294.2,6.27272246]
[1757096132752,0.4955,4294.3,4294.2,2.32872246]
[1757096133479,0.4955,4294.3,4294.2,9.13162693]
[1757096133870,0.4933,4294.3,4294.2,9.13162693]
[1757096134082,0.001,4294.3,4294.2,9.13162693]
[1757096134774,0.001,4294.3,4294.2,9.42712693]
[1757096135085,0.0032,4294.3,4294.2,8.7570414]
[1757096135282,0.001,4294.3,4294.2,15.3435349]
[1757096135467,0.001,4294.3,4294.2,16.0758349]
[1757096136260,0.001,4294.3,4294.2,22.0918349]
[1757096136858,0.001,4294.3,4294.2,21.6550349]
[1757096137595,0.001,4294.3,4294.2,21.3595349]
[1757096137961,0.001,4294.3,4294.2,22.0918349]
[1757096138472,0.001,4294.3,4294.2,30.5447349]
[1757096138779,0.001,4294.3,4294.2,30.63803905]
[1757096140500,0.001,4294.3,4294.2,19.20984555]
[1757096140702,0.0032,4294.3,4294.2,19.58813343]
[1757096140902,0.001,4294.3,4294.2,19.58813343]
[1757096142678,0.001,4294.3,4294.2,15.38813343]
[1757096143475,0.001,4294.3,4294.2,15.69533343]
[1757096144994,0.001,4294.3,4294.2,21.15273343]
[1757096145298,0.001,4294.3,4294.2,23.9146414]
[1757096145479,0.001,4294.3,4294.2,24.00795034]
[1757096145995,0.001,4294.3,4294.2,23.51395034]
[1757096148494,0.001,4294.3,4294.2,18.79835034]
[1757096148795,0.001,4295.2,4294.9,3.0]
[1757096148995,0.001,4295.2,4295.1,20.54806874]
[1757096149297,0.001,4295.2,4295.1,23.3999142]
[1757096149500,0.001,4295.2,4295.1,23.8653142]
[1757096149666,0.001,4295.2,4295.1,29.7653142]
[1757096149996,0.001,4295.2,4295.1,32.03322217]
[1757096150362,0.001,4295.2,4295.1,32.52152217]
[1757096150565,0.001,4295.2,4295.1,32.63752217]
[1757096150767,0.001,4295.2,4295.1,33.13152217]
[1757096151478,0.001,4295.2,4295.1,32.63752217]
[1757096152375,0.001,4295.2,4295.1,32.63835078]
[1757096152702,0.001,4295.2,4295.1,33.13235078]
[1757096153498,0.001,4295.2,4295.1,32.63835078]
[1757096153868,0.001,4295.2,4295.1,36.83835078]
[1757096155598,0.001,4295.2,4295.1,20.57628204]
[1757096155819,1e-08,4295.8,4295.7,3.1199093]
[1757096156112,1e-08,4295.8,4295.7,10.59113981]
[1757096156315,1e-08,4295.8,4295.7,11.47973981]
[1757096156484,1e-08,4295.8,4295.7,17.86803981]
[1757096158309,1e-08,4295.8,4295.7,17.56083981]
[1757096158711,1e-08,4295.8,4295.7,13.15343981]
[1757096158914,1e-08,4295.8,4295.7,17.09443981]
[1757096159826,0.49050001,4295.8,4295.7,13.30243981]
[1757096159995,0.49050001,4295.8,4295.7,12.50214888]
[1757096161794,0.49050001,4295.8,4295.7,12.50149922]
[1757096162785,1e-08,4295.8,4295.7,12.50149922]
[1757096163616,0.49050001,4295.8,4295.7,12.50149922]
[1757096164816,1e-08,4295.8,4295.7,12.50149922]
[1757096165020,1e-08,4295.8,4295.7,15.53163091]
[1757096165401,0.00220001,4295.8,4295.7,14.75903091]
[1757096165608,0.49050001,4295.8,4295.7,14.75903091]
[1757096166505,0.49050001,4295.8,4295.7,16.70149922]
[1757096167590,0.49050001,4295.8,4295.7,16.70150368]
[1757096168120,0.49050001,4295.8,4295.7,12.50150368]
[1757096168620,1e-08,4295.8,4295.7,12.50150368]
[1757096168925,1e-08,4295.8,4295.7,16.95010368]
[1757096169222,1e-08,4295.8,4295.7,19.33401165]
[1757096169987,0.00100001,4295.8,4295.7,19.33401165]
[1757096170397,0.00100001,4295.8,4295.7,18.56141165]
[1757096170591,0.00100001,4295.8,4295.7,18.85501165]
[1757096170826,0.00100001,4295.8,4295.7,19.32891165]
[1757096171119,0.00100001,4295.8,4295.7,19.42218642]
[1757096174294,0.46150001,4295.8,4295.7,13.92168642]
[1757096174509,0.46150001,4295.8,4295.7,15.50050368]
[1757096175118,0.00100001,4295.8,4295.7,16.26800368]
[1757096175306,0.00100001,4295.8,4295.7,17.06000368]
[1757096177417,0.00100001,4295.8,4295.7,17.15327846]
[1757096177736,0.00100001,4295.8,4295.7,19.42118643]
[1757096178903,0.00100001,4295.8,4295.7,19.88538643]
[1757096179434,0.00100001,4295.8,4295.7,24.08538643]
[1757096181160,0.00100001,4295.8,4295.7,19.20728643]
[1757096181364,0.00100001,4295.8,4295.7,23.14628643]
[1757096181514,0.00100001,4295.8,4295.7,18.91368643]
[1757096181713,0.00320001,4295.8,4295.7,22.85268643]
[1757096181923,0.46150001,4295.8,4295.7,22.06068643]
[1757096182249,0.46150001,4295.8,4295.7,21.96741165]
[1757096183601,0.45930001,4295.8,4295.7,18.02841165]
[1757096183805,0.46360001,4295.8,4295.7,21.96741165]
[1757096184806,0.45930001,4295.8,4295.7,21.96741165]
[1757096185207,0.45930001,4295.8,4295.7,18.02841165]
[1757096185208,0.46560001,4295.8,4295.7,18.02841165]
[1757096185406,0.46560001,4295.8,4295.7,19.69950368]
[1757096189344,0.00100001,4295.8,4295.7,20.46700368]
[1757096189845,0.00100001,4295.8,4295.7,19.69950368]
[1757096190353,0.00320001,4295.8,4295.7,19.69950368]
[1757096190957,0.00100001,4295.8,4295.7,19.69950368]
[1757096191341,0.46150001,4295.8,4295.7,19.69950368]
[1757096192231,0.46150001,4295.8,4295.7,19.70028995]
[1757096193645,0.00100001,4295.8,4295.7,19.4829093]
[1757096193872,0.00100001,4295.8,4295.7,22.43189724]
[1757096194270,0.00100001,4295.8,4295.7,30.64194483]
[1757096195671,0.025,4296.8,4296.0,3.11974674]
[1757096195845,0.025,4296.8,4296.7,3.11936751]
[1757096196181,0.025,4296.8,4296.7,11.69350573]
[1757096196475,0.05,4297.8,4297.7,2.32682597]
[1757096196673,0.05,4297.8,4297.7,7.05559422]
[1757096196974,0.05,4297.8,4297.7,7.03232597]
[1757096197136,1e-08,4298.1,4298.0,2.32666356]
[1757096197335,1e-08,4298.1,4298.0,11.45504345]
[1757096197558,1e-08,4298.1,4298.0,19.37874345]
[1757096198159,0.001,4299.0,4298.0,19.37874345]
[1757096198160,1e-08,4299.0,4298.9,6.11817646]
[1757096198350,1e-08,4299.0,4298.9,17.80202405]
[1757096198553,1e-08,4299.0,4298.9,19.03372405]
[1757096198747,1e-08,4299.0,4298.9,21.16972107]
[1757096199043,1e-08,4299.0,4298.9,21.26291825]
[1757096199570,1e-08,4299.0,4298.9,19.41707066]
[1757096200271,1e-08,4299.0,4298.9,18.95287066]
[1757096200853,1e-08,4299.0,4298.9,19.43097066]
[1757096201385,1e-08,4299.0,4298.9,18.18437066]
[1757096201883,1e-08,4299.0,4298.9,18.09017348]
[1757096202580,1e-08,4299.0,4298.9,18.38857348]
[1757096202781,1e-08,4299.0,4298.9,18.82357348]
[1757096203086,1e-08,4299.0,4298.9,18.38857348]
[1757096203276,1e-08,4299.0,4298.9,18.82357348]
[1757096204592,1e-08,4299.0,4298.9,18.38857348]
[1757096205087,1e-08,4299.0,4298.9,18.82357348]
[1757096205758,1e-08,4299.0,4298.9,18.93957348]
[1757096206987,1e-08,4299.0,4298.9,18.20617348]
[1757096208170,1e-08,4299.0,4298.9,18.50457348]
[1757096208693,1e-08,4299.0,4298.9,18.93957348]
[1757096210874,1e-08,4299.0,4298.9,23.13957348]
[1757096212666,1e-08,4299.0,4298.9,22.40617348]
[1757096213061,1e-08,4299.0,4298.9,22.70457348]
[1757096213264,1e-08,4299.0,4298.9,23.13957348]
[1757096216712,0.68780001,4299.0,4298.9,12.16017646]
[1757096217592,0.68780001,4299.0,4298.9,6.26017646]
[1757096217913,0.68780001,4299.0,4298.9,2.32617646]
[1757096219192,0.68560001,4299.0,4298.9,2.32617646]
[1757096221014,0.68780001,4299.0,4298.9,2.32617646]
[1757096221399,0.68560001,4299.0,4298.9,2.32617646]
[1757096222732,1e-08,4299.0,4298.9,3.05957646]
[1757096222885,1e-08,4299.0,4298.9,4.81632233]
[1757096223085,1e-08,4299.0,4298.9,8.60832233]
[1757096223416,1e-08,4299.0,4298.9,14.60152863]
[1757096223651,1e-08,4299.0,4298.9,14.33923001]
[1757096226830,1e-08,4299.0,4298.9,14.45523001]
[1757096227637,1e-08,4299.0,4298.9,21.02993668]
[1757096228211,1e-08,4299.0,4298.9,14.45523001]
[1757096228398,1e-08,4299.0,4298.9,21.02993668]
[1757096229837,1e-08,4299.0,4298.9,25.22993668]
[1757096231003,1e-08,4299.0,4298.9,17.12983001]
[1757096231501,1e-08,4299.0,4298.9,21.70262371]
[1757096233232,1e-08,4299.0,4298.9,20.96962371]
[1757096233536,1e-08,4299.0,4298.9,20.97064329]
[1757096234538,0.00220001,4299.0,4298.9,20.97064329]
[1757096234722,0.47410001,4299.0,4298.9,20.97064329]
[1757096235332,0.00220001,4299.0,4298.9,20.97064329]
[1757096235639,0.47410001,4299.0,4298.9,20.97064329]
[1757096236140,1e-08,4299.0,4298.9,20.97064329]
[1757096236514,0.00220001,4299.0,4298.9,17.03764329]
[1757096236722,0.47410001,4299.0,4298.9,16.69099742]
[1757096237029,0.47410001,4299.0,4298.9,12.75899742]
[1757096237223,0.47410001,4299.0,4298.9,16.69099742]
[1757096238229,0.47410001,4299.0,4298.9,10.67499742]
[1757096238436,0.47410001,4299.0,4298.8,2.33020355]
[1757096238437,0.68790001,4299.0,4298.8,2.33020355]
[1757096238636,0.6857,4298.9,4298.8,2.33023057]
[1757096238844,0.69,4298.9,4298.8,2.33023057]
[1757096239921,0.4762,4298.9,4298.8,2.33023057]
[1757096240845,0.4762,4298.9,4298.8,0.004]
[1757096241049,1.52059067,4298.9,4298.8,0.004]
[1757096242923,1.52059067,4298.9,4298.8,2.33023057]
[1757096243175,1.30889067,4298.9,4298.8,0.004]
[1757096243371,1.30889067,4298.9,4298.8,2.33023057]
[1757096243572,1.30459067,4298.9,4298.8,0.004]
[1757096243874,0.8038,4298.9,4298.8,2.33023057]
[1757096245962,0.8038,4298.9,4298.8,0.004]
[1757096247140,0.8038,4298.9,4298.8,2.33023057]
[1757096248059,0.8038,4298.9,4298.8,0.004]
[1757096248443,0.8038,4298.9,4298.8,2.33023057]
[1757096248868,0.8038,4298.9,4298.8,0.004]
[1757096249031,3.87024713,4298.9,4298.8,0.004]
[1757096252734,7.80224713,4298.9,4298.8,0.004]
[1757096256556,7.80004713,4298.9,4298.8,0.004]
[1757096257070,1e-08,4299.0,4298.9,2.32617646]
[1757096257272,3.93100001,4299.0,4298.9,3.05917646]
[1757096260834,3.93100001,4299.0,4298.9,0.733]
[1757096261040,3.93100001,4299.0,4298.8,0.004]
[1757096261451,3.93100001,4299.0,4298.8,2.33020472]
[1757096261783,3.93100001,4299.0,4298.8,0.004]
[1757096261961,3.93100001,4299.0,4298.8,2.33021552]
[1757096262150,3.93100001,4299.0,4298.9,2.32617646]
[1757096262351,3.93100001,4299.0,4298.8,0.004]
[1757096262552,3.93100001,4299.0,4298.8,0.4786]
[1757096262760,3.93100001,4299.0,4298.9,2.32617646]
[1757096263083,3.93100001,4299.0,4298.9,3.10017646]
[1757096263677,3.93100001,4299.0,4298.9,3.57507646]
[1757096267187,4.04700001,4299.0,4298.9,3.57507646]
[1757096267757,0.11600001,4299.0,4298.9,3.57507646]
[1757096268177,0.11600001,4299.0,4298.9,3.10017646]
[1757096268687,1e-08,4299.0,4298.9,4.58561228]
[1757096270463,1e-08,4299.0,4298.9,3.10017646]
[1757096270666,0.21590001,4299.0,4298.9,2.32617646]
[1757096271017,13.51095559,4299.0,4298.8,0.004]
[1757096271180,2.32617646,4298.9,4298.8,0.004]
[1757096271552,3.00627646,4298.9,4298.8,0.004]
[1757096271878,6.12481337,4298.9,4298.8,0.004]
[1757096272487,6.12051337,4298.9,4298.8,0.004]
[1757096272688,2.32660943,4298.1,4297.9,0.004]
[1757096272874,21.12002277,4298.1,4297.9,0.004]
[1757096273208,18.2190161,4298.1,4297.9,0.004]
[1757096273491,2.32671769,4297.9,4296.8,0.025]
[1757096273791,9.25671769,4297.9,4296.8,0.025]
[1757096273956,9.93681769,4297.9,4296.8,0.025]
[1757096274671,6.00461769,4297.9,4296.8,0.025]
[1757096274870,16.50932436,4297.9,4297.0,0.4746]
[1757096275282,12.57932436,4297.9,4297.0,0.4746]
[1757096275491,6.93,4297.9,4297.8,0.3244]
[1757096275873,9.25671769,4297.9,4297.8,0.025]
[1757096276079,15.83362436,4297.9,4297.8,0.025]
[1757096276281,16.29562436,4297.9,4297.8,0.025]
[1757096278889,9.25671769,4297.9,4297.8,0.029]
[1757096279089,9.72091769,4297.9,4297.8,0.029]
[1757096279289,9.25891769,4297.9,4297.8,0.029]
[1757096279495,9.25671769,4297.9,4297.8,0.029]
[1757096279818,6.93,4297.9,4297.8,0.029]
[1757096280125,9.25671769,4297.9,4297.8,0.029]
[1757096280473,1.80728522,4298.1,4297.8,0.803]
[1757096280669,1.714,4298.1,4297.9,0.4746]
[1757096280873,1.83,4298.1,4298.0,0.774]
[1757096281106,5.76,4298.1,4298.0,0.774]
[1757096281601,5.644,4298.1,4298.0,3.57556356]
[1757096282508,3.93,4298.1,4298.0,3.57556356]
[1757096282679,3.93,4298.1,4298.0,4.41297207]
[1757096283009,3.93,4298.5,4298.1,2.32660943]
[1757096283171,3.93,4298.5,4298.4,2.62584705]
[1757096283503,3.93,4298.5,4298.4,3.57534705]
[1757096284814,3.93,4298.5,4298.4,0.774]
[1757096285017,3.93,4298.5,4298.4,3.10044705]
[1757096286314,3.93,4298.5,4298.4,0.774]
[1757096286733,3.93,4298.5,4298.2,2.32651306]
[1757096286882,3.93,4298.5,4298.1,2.32658655]
[1757096287084,4.392,4298.5,4297.9,0.116]
[1757096287326,4.392,4298.5,4298.1,2.32657808]
[1757096287327,3.93,4298.5,4298.1,2.32657808]
[1757096287511,3.93,4298.5,4298.4,0.2994]
[1757096287891,3.93,4298.5,4298.4,0.774]
[1757096288305,3.93,4298.5,4298.4,0.2994]
[1757096288624,3.93,4298.5,4298.1,2.80117925]
[1757096288826,3.93,4298.5,4298.1,2.32657925]
[1757096289029,3.93,4298.5,4298.1,0.4746]
[1757096289197,3.93,4298.5,4298.0,2.32665284]
[1757096289524,4.3886,4298.5,4298.0,2.32665284]
[1757096289921,4.3886,4298.5,4297.9,0.116]
[1757096290127,3.93,4298.5,4298.4,0.3059]
[1757096290427,3.93,4298.5,4298.1,0.4298]
[1757096290724,3.93,4298.5,4298.2,2.32652706]
[1757096291496,3.93,4298.5,4298.3,2.32649418]
[1757096291893,3.93,4298.5,4298.4,2.32644705]
[1757096292093,1e-08,4299.0,4298.4,1.2164]
[1757096292326,1e-08,4299.0,4298.9,2.32617646]
[1757096292529,3.92900001,4299.0,4298.9,2.32617646]
[1757096293193,1e-08,4299.0,4298.9,3.06187646]
[1757096293398,1e-08,4299.0,4298.9,3.54257646]
[1757096293841,1e-08,4299.0,4298.9,9.44257646]
[1757096294126,1e-08,4299.0,4298.9,10.61945783]
[1757096294696,1e-08,4299.0,4298.9,14.54745783]
[1757096295164,1e-08,4299.0,4298.9,17.54745783]
[1757096297919,1e-08,4299.0,4298.9,18.33945783]
[1757096299130,1e-08,4299.0,4298.9,22.53945783]
[1757096302341,1e-08,4299.0,4298.9,22.65545783]
[1757096303909,1e-08,4299.0,4298.9,18.8206498]
[1757096304108,1e-08,4299.0,4298.9,22.7476498]
[1757096307949,1e-08,4299.0,4298.9,22.7466498]
[1757096309017,1e-08,4299.0,4298.9,22.2659498]
[1757096309218,1e-08,4299.0,4298.9,22.7466498]
[1757096313648,1e-08,4299.0,4298.9,22.96237561]
[1757096314069,1e-08,4299.0,4298.9,18.76237561]
[1757096315689,1e-08,4299.0,4298.9,18.28167561]
[1757096316269,1e-08,4299.0,4298.9,18.28067561]
[1757096317449,1e-08,4299.0,4298.9,26.01206515]
[1757096317981,1e-08,4299.0,4298.9,26.49276515]
[1757096319174,1e-08,4299.0,4298.9,26.01206515]
[1757096321078,1e-08,4299.0,4298.9,25.61487318]
[1757096321385,1e-08,4299.0,4298.9,25.91847318]
[1757096321946,1e-08,4299.0,4298.9,26.37127318]
[1757096322147,1e-08,4299.0,4298.9,25.91847318]
[1757096325285,0.001,4299.4,4299.3,3.11796004]
[1757096325466,0.001,4299.4,4299.3,18.83347334]
[1757096325777,0.4681,4299.4,4299.3,18.94947334]
[1757096325952,0.4681,4299.4,4299.3,11.2180838]
[1757096326684,0.4681,4299.4,4299.3,17.1180838]
[1757096326996,0.4681,4299.4,4299.3,17.11940792]
[1757096327650,0.001,4299.4,4299.3,17.11940792]
[1757096327949,0.0053,4299.4,4299.3,17.11940792]
[1757096328369,0.001,4299.4,4299.3,17.11940792]
[1757096330662,0.001,4299.4,4299.3,17.11957119]
[1757096332365,0.4681,4299.4,4299.3,17.11957119]
[1757096333509,0.6819,4299.4,4299.3,12.48217324]
[1757096333648,0.6819,4299.4,4299.3,12.36617324]
[1757096333854,0.6819,4299.4,4299.3,6.24896004]
[1757096335296,0.6819,4299.4,4299.3,2.32596004]
[1757096335681,0.4681,4299.4,4299.3,2.32596004]
[1757096336200,0.6819,4299.4,4299.3,2.32596004]
[1757096340872,0.4681,4299.4,4299.3,2.32596004]
[1757096341369,0.6819,4299.4,4299.3,2.32596004]
[1757096341567,0.4681,4299.4,4299.3,2.32596004]
[1757096342406,0.001,4299.4,4299.3,2.32596004]
[1757096344972,0.001,4299.4,4299.3,3.06226004]
[1757096345400,0.001,4299.4,4299.3,2.62956004]
[1757096345597,0.001,4299.4,4299.3,2.32596004]
[1757096345799,0.001,4299.4,4299.3,8.22596004]
[1757096345999,0.001,4299.4,4299.3,8.52956004]
[1757096346302,0.001,4299.4,4299.3,15.65095532]
[1757096346499,0.001,4299.4,4299.3,17.88613279]
[1757096348283,0.001,4299.4,4299.3,11.76623751]
[1757096348481,0.001,4299.4,4299.3,15.55823751]